bitfinex-derivatives/quotes_SOLF0:USTF0_20250106
["timestamp","ask_amount","ask_price","bid_price","bid_amount"]
[1736200556144,2.2889,218.34,218.32,7.37566087]
[1736200559343,7.08945803,218.39,218.32,7.37566087]
[1736200559344,2.289,218.33,218.32,7.37566087]
[1736200559547,2.289,218.33,218.32,2.6]
[1736200560341,2.2894,218.3,218.29,7.08945803]
[1736200560742,7.08945803,218.35,218.27,9.68945803]
[1736200560946,2.2891,218.33,218.27,9.68945803]
[1736200561143,7.08945803,218.35,218.27,9.68945803]
[1736200561338,7.08945803,218.33,218.25,2.6]
[1736200561547,7.08945803,218.33,218.26,9.68945803]
[1736200562143,2.2896,218.28,218.26,7.08945803]
[1736200562544,2.2893,218.31,218.26,7.08945803]
[1736200562742,2.2893,218.31,218.3,7.08945803]
[1736200563044,15.84487683,218.39,218.3,9.68945803]
[1736200563246,2.2889,218.35,218.32,7.08945803]
[1736200563645,7.08945803,218.39,218.3,2.6]
[1736200563845,2.289,218.34,218.31,7.08945803]
[1736200565046,2.2891,218.33,218.31,7.08945803]
[1736200565544,2.2892,218.31,218.3,2.6]
[1736200565940,7.08945803,218.35,218.26,2.6]
[1736200566142,2.2896,218.28,218.26,9.68945803]
[1736200567442,2.2896,218.28,218.26,11.97925803]
[1736200570149,2.2896,218.28,218.26,9.68945803]
[1736200570447,6.11540025,218.38,218.26,9.68945803]
[1736200570448,2.2897,218.27,218.26,9.68945803]
[1736200571446,2.2897,218.27,218.26,2.6]
[1736200571646,2.2897,218.27,218.26,9.68945803]
[1736200574153,2.2897,218.27,218.26,7.08945803]
[1736200577550,2.2898,218.26,218.24,2.6]
[1736200577851,2.2898,218.26,218.25,7.08945803]
[1736200580953,2.6,218.35,218.24,2.6]
[1736200580954,7.08945803,218.31,218.24,2.6]
[1736200581158,7.08945803,218.29,218.23,9.68945803]
[1736200582359,2.29,218.24,218.23,9.68945803]
[1736200585357,2.2904,218.22,218.21,8.52125803]
[1736200585557,2.2904,218.22,218.21,7.08945803]
[1736200586262,2.2906,218.2,218.19,7.08945803]
[1736200588666,2.2908,218.19,218.17,9.68945803]
[1736200588963,7.08945803,218.23,218.15,1.4349]
[1736200589267,7.08945803,218.23,218.15,7.08945803]
[1736200590061,7.08945803,218.23,218.17,7.08945803]
[1736200590865,14.87177775,218.28,218.19,7.08945803]
[1736200591064,14.87177775,218.28,218.21,7.08945803]
[1736200591065,15.84487683,218.28,218.21,7.08945803]
[1736200591265,2.2904,218.22,218.21,7.08945803]
[1736200599372,8.7554188,218.29,218.21,7.08945803]
[1736200599676,2.2903,218.24,218.23,7.08945803]
[1736200599976,2.2903,218.24,218.19,2.6]
[1736200600171,2.2903,218.24,218.23,7.08945803]
[1736200600867,10.1736188,218.32,218.23,7.08945803]
[1736200600868,8.7554188,218.31,218.23,7.08945803]
[1736200601075,8.7554188,218.31,218.19,2.6]
[1736200601076,2.2901,218.26,218.25,7.08945803]
[1736200602373,2.2899,218.28,218.25,7.08945803]
[1736200602574,2.2899,218.28,218.27,7.08945803]
[1736200605675,2.2895,218.31,218.27,7.08945803]
[1736200605876,7.08945803,218.35,218.27,7.08945803]
[1736200606481,2.2896,218.3,218.27,7.08945803]
[1736200606778,2.2896,218.3,218.26,2.29]
[1736200607078,2.2897,218.29,218.27,7.08945803]
[1736200608276,2.2896,218.3,218.27,7.08945803]
[1736200608475,2.2896,218.3,218.29,7.08945803]
[1736200609975,7.08945803,218.38,218.29,9.68945803]
[1736200610176,2.2894,218.32,218.31,7.08945803]
[1736200610378,2.2894,218.32,218.31,0.09358441]
[1736200611175,14.89128843,218.37,218.29,2.6]
[1736200611372,7.08945803,218.33,218.26,2.6]
[1736200611570,6.13586963,218.36,218.27,9.68945803]
[1736200611779,6.13586963,218.38,218.27,9.68945803]
[1736200611981,2.2898,218.28,218.27,9.68945803]
[1736200613282,2.2898,218.28,218.27,2.6]
[1736200615177,7.08945803,218.29,218.25,2.6]
[1736200615682,2.29,218.26,218.25,2.6]
[1736200617279,2.29,218.26,218.25,9.68945803]
[1736200617585,7.08945803,218.34,218.25,9.68945803]
[1736200617785,7.08945803,218.34,218.27,7.08945803]
[1736200618183,7.08945803,218.34,218.25,2.6]
[1736200618387,13.2278342,218.34,218.27,7.08945803]
[1736200618582,7.08945803,218.34,218.27,7.08945803]
[1736200618887,13.2278342,218.34,218.27,7.08945803]
[1736200619086,7.08945803,218.34,218.27,7.08945803]
[1736200619480,2.2898,218.29,218.27,7.08945803]
[1736200619991,2.2895,218.31,218.27,7.08945803]
[1736200620187,2.2895,218.31,218.29,7.08945803]
[1736200620392,7.08945803,218.36,218.29,7.08945803]
[1736200620589,2.2892,218.34,218.29,7.08945803]
[1736200620793,7.08945803,218.36,218.29,7.08945803]
[1736200621496,2.2896,218.3,218.29,7.08945803]
[1736200622296,8.7554188,218.37,218.29,7.08945803]
[1736200622491,2.2894,218.32,218.29,7.08945803]
[1736200622996,7.08945803,218.36,218.29,7.08945803]
[1736200622997,2.2895,218.31,218.29,7.08945803]
[1736200624196,2.2894,218.32,218.3,2.6]
[1736200624398,2.2894,218.32,218.31,7.08945803]
[1736200624596,7.08945803,218.38,218.16,6.37822103]
[1736200624798,6.12644045,218.39,218.25,2.29]
[1736200624799,2.2897,218.29,218.25,2.29]
[1736200624997,2.2897,218.29,218.28,7.08945803]
[1736200625198,7.08945803,218.36,218.16,6.37822103]
[1736200625399,7.08945803,218.36,218.28,7.08945803]
[1736200625598,7.08945803,218.34,218.28,9.68945803]
[1736200626400,2.2897,218.29,218.28,9.68945803]
[1736200626893,7.08945803,218.36,218.28,9.68945803]
[1736200628094,7.08945803,218.36,218.3,7.08945803]
[1736200628298,7.08945803,218.38,218.3,7.08945803]
[1736200629596,2.2894,218.32,218.3,7.08945803]
[1736200632299,2.2896,218.3,218.28,2.6]
[1736200632495,2.2896,218.3,218.29,7.08945803]
[1736200632702,7.08945803,218.38,218.29,7.08945803]
[1736200632903,7.08945803,218.38,218.31,7.08945803]
[1736200633404,2.2894,218.32,218.31,7.08945803]
[1736200638811,2.2896,218.3,218.28,2.6]
[1736200638999,2.2896,218.3,218.29,7.08945803]
[1736200640001,2.2895,218.32,218.29,7.08945803]
[1736200640907,7.08945803,218.38,218.31,7.08945803]
[1736200642412,2.2894,218.32,218.31,7.08945803]
[1736200645539,2.2892,218.34,218.31,9.37885803]
[1736200645731,2.2892,218.34,218.33,7.08945803]
[1736200646040,2.2892,218.34,218.33,9.68945803]
[1736200647213,2.2891,218.35,218.33,9.68945803]
[1736200648315,2.2888,218.38,218.34,2.2891]
[1736200648615,8.7554188,218.41,218.35,7.08945803]
[1736200648813,6.13307406,218.42,218.35,7.08945803]
[1736200649015,7.08945803,218.43,218.35,7.08945803]
[1736200651112,44.0,218.36,218.11,190.79444268]
[1736200651314,95.26117941,218.35,217.89,1.5094]
[1736200651513,27.49,218.33,218.22,19.09968213]
[1736200651709,13.74,218.22,218.16,138.66864448]
[1736200651916,9.38035803,218.17,218.16,28.18900432]
[1736200652116,26.0945165,218.17,218.16,16.7244375]
[1736200652320,26.0945165,218.17,217.89,3.8032]
[1736200652321,386.92420562,218.17,218.0,7.08945803]
[1736200652620,2.2922,218.06,218.01,2.78]
[1736200652815,2.97415847,218.05,218.01,2.78]
[1736200653117,2.97415847,218.04,217.97,11.10534498]
[1736200653322,2.97415847,218.04,217.98,2.78]
[1736200653619,115.18501414,218.16,217.8,11.10534498]
[1736200653620,2.97415847,218.03,217.9,52.38]
[1736200653815,51.19333962,218.02,217.9,36.63715575]
[1736200654015,2.97415847,218.01,217.91,2.78]
[1736200654418,2.97415847,218.0,217.91,2.78]
[1736200654620,2.97415847,218.0,217.99,11.10534498]
[1736200654922,2.78,218.15,217.99,13.88534498]
[1736200655123,2.78,218.15,218.01,11.10534498]
[1736200655316,153.36460914,218.14,218.01,2.78]
[1736200655816,2.98900939,218.13,218.01,2.78]
[1736200656120,66.29367065,218.12,218.01,2.78]
[1736200656517,2.2919,218.09,218.01,2.78]
[1736200656717,2.98900939,218.08,218.0,11.10534498]
[1736200657223,2.98900939,218.07,218.01,2.78]
[1736200657426,2.98900939,218.06,218.0,11.10534498]
[1736200657722,2.98900939,218.05,218.01,2.78]
[1736200657919,2.98900939,218.04,217.97,11.10534498]
[1736200658224,2.98900939,218.03,217.95,2.78]
[1736200658526,2.98900939,218.02,217.95,2.78]
[1736200659019,2.98900939,218.01,217.91,11.10534498]
[1736200659326,2.2929,217.99,217.92,2.78]
[1736200659522,2.98900939,217.98,217.92,2.78]
[1736200659922,2.98900939,217.97,217.92,2.78]
[1736200660223,2.98900939,217.96,217.92,2.78]
[1736200660623,2.98900939,217.95,217.92,2.78]
[1736200660824,2.98900939,217.94,217.92,2.78]
[1736200661019,2.2929,217.99,217.92,13.88534498]
[1736200661422,2.293,217.98,217.92,13.88534498]
[1736200663925,2.293,217.98,217.92,16.17894498]
[1736200665330,2.293,217.98,217.93,2.78]
[1736200665526,2.293,217.98,217.94,2.78]
[1736200665829,125.32344667,218.04,217.94,2.78]
[1736200666432,125.32344667,218.04,217.94,5.0734]
[1736200666731,125.32344667,218.04,217.95,2.78]
[1736200666931,154.68940104,218.06,217.95,2.78]
[1736200667534,154.68940104,218.06,217.95,5.0732]
[1736200667732,125.32344667,218.06,217.95,5.0732]
[1736200668432,2.2927,218.0,217.95,5.0732]
[1736200670133,2.2928,217.99,217.95,2.78]
[1736200671532,2.2928,218.0,217.95,5.0732]
[1736200671829,2.2928,218.0,217.95,2.78]
[1736200673132,2.93039322,217.99,217.95,2.78]
[1736200673334,2.93039322,217.98,217.95,2.78]
[1736200673531,5.96214156,218.14,217.97,11.10534498]
[1736200673835,5.96214156,218.14,218.03,11.10534498]
[1736200674033,5.96214156,218.14,218.04,2.78]
[1736200675336,2.2918,218.09,218.04,5.0723]
[1736200676636,17.06748654,218.14,218.04,5.0723]
[1736200676935,2.2919,218.08,218.04,5.0723]
[1736200678537,17.06748654,218.14,218.0,11.10534498]
[1736200678733,11.10534498,218.11,218.01,2.78]
[1736200679036,11.10534498,218.11,218.02,2.78]
[1736200680534,136.42879165,218.11,218.02,2.78]
[1736200680736,2.2919,218.09,218.02,2.78]
[1736200680938,136.42879165,218.11,218.02,2.78]
[1736200681337,136.42879165,218.11,218.01,2.2926]
[1736200681338,11.10534498,218.11,218.01,2.2926]
[1736200681536,11.10534498,218.11,218.01,5.1126]
[1736200681728,2.2923,218.05,218.01,5.1126]
[1736200682038,11.10534498,218.11,218.0,2.82]
[1736200682234,11.10534498,218.08,217.98,2.82]
[1736200682433,1.399,218.07,217.98,2.82]
[1736200682636,1.399,218.07,217.98,5.1129]
[1736200683144,1.399,218.07,217.94,11.10534498]
[1736200683440,1.399,218.07,217.98,2.82]
[1736200684836,2.2923,218.05,218.01,2.2926]
[1736200685538,2.2923,218.04,218.01,2.2926]
[1736200685739,5.19702439,218.04,218.01,2.2926]
[1736200685939,2.90472439,218.03,218.01,2.2926]
[1736200686335,2.90472439,218.02,218.01,2.2926]
[1736200692745,150.10721191,218.11,218.0,7.107863]
[1736200692940,150.10721191,218.11,218.05,2.2922]
[1736200693141,2.292,218.08,218.05,2.2922]
[1736200693638,2.292,218.08,218.06,2.2921]
[1736200693944,2.292,218.08,218.04,2.82]
[1736200694745,2.2921,218.06,218.04,2.82]
[1736200695044,7.107863,218.1,218.04,2.82]
[1736200695846,2.2921,218.07,218.04,5.1123]
[1736200696650,15.84874814,218.12,218.04,9.927863]
[1736200696844,15.84874814,218.12,218.04,12.219863]
[1736200697143,15.84874814,218.12,218.04,5.112]
[1736200697351,2.2919,218.07,218.04,5.112]
[1736200697949,2.2919,218.07,218.04,12.219863]
[1736200698150,2.2916,218.09,218.05,2.2919]
[1736200698351,15.84874814,218.13,218.05,2.2919]
[1736200698755,7.107863,218.13,218.05,2.2919]
[1736200699555,7.107863,218.11,218.05,2.2919]
[1736200700447,2.2917,218.08,218.05,2.2919]
[1736200700846,2.2917,218.08,218.04,5.112]
[1736200701046,2.2917,218.08,218.04,12.219863]
[1736200702051,2.2917,218.08,218.04,9.927863]
[1736200702256,2.2916,218.09,218.06,7.107863]
[1736200704448,2.2917,218.08,218.06,7.107863]
[1736200705055,2.2917,218.08,218.05,2.292]
[1736200705256,2.2918,218.07,218.04,12.219963]
[1736200705555,2.2918,218.07,218.04,5.1121]
[1736200705750,2.2919,218.06,218.04,9.927863]
[1736200706853,2.2919,218.06,218.04,12.219963]
[1736200707253,2.2919,218.06,218.04,9.399963]
[1736200707454,7.107863,218.09,218.01,2.2923]
[1736200707660,7.107863,218.07,218.01,2.82]
[1736200708659,2.2923,218.03,218.01,2.82]
[1736200708959,7.107863,218.03,217.96,2.82]
[1736200709456,7.107863,218.03,217.95,7.107863]
[1736200709661,7.107863,218.03,217.95,9.927863]
[1736200710153,2.2929,217.96,217.92,5.1726]
[1736200710358,7.107863,218.01,217.92,7.9926]
[1736200710550,7.107863,218.01,217.93,7.107863]
[1736200711059,7.107863,218.01,217.95,7.107863]
[1736200711959,7.107863,218.01,217.92,15.100463]
[1736200712361,7.107863,217.99,217.91,7.107863]
[1736200712561,7.107863,217.99,217.91,9.927863]
[1736200713161,2.2933,217.93,217.91,9.927863]
[1736200713664,2.2933,217.93,217.91,7.107863]
[1736200714667,2.2933,217.93,217.89,12.221563]
[1736200715162,7.107863,217.97,217.84,3.0653]
[1736200715373,2.2936,217.91,217.88,7.107863]
[1736200716468,7.107863,217.95,217.87,7.107863]
[1736200716668,2.2936,217.9,217.87,9.927863]
[1736200717268,2.2935,217.91,217.87,12.221663]
[1736200717574,7.107863,217.95,217.87,2.82]
[1736200717774,2.2932,217.94,217.89,9.401463]
[1736200718974,2.2935,217.91,217.87,5.1138]
[1736200719185,7.107863,217.97,217.87,9.927863]
[1736200719775,2.2934,217.92,217.88,2.2937]
[1736200723170,2.2934,217.92,217.89,2.2936]
[1736200723380,2.2932,217.94,217.89,7.107863]
[1736200723781,7.107863,217.97,217.9,2.2935]
[1736200724282,7.107863,217.95,217.87,9.927863]
[1736200724479,7.107863,217.93,217.87,5.1138]
[1736200725282,2.2935,217.91,217.87,5.1138]
[1736200725780,2.2935,217.91,217.88,2.2937]
[1736200728075,2.2934,217.92,217.87,9.927863]
[1736200728379,2.2934,217.92,217.89,9.401463]
[1736200729275,2.2934,217.92,217.89,2.2936]
[1736200729473,2.2934,217.92,217.89,9.401463]
[1736200730484,2.2932,217.94,217.9,2.2935]
[1736200730682,2.9506,218.01,217.87,2.82]
[1736200730986,2.9506,218.01,217.93,7.107863]
[1736200731186,10.058463,218.01,217.93,9.927863]
[1736200731379,2.2928,217.98,217.94,2.293]
[1736200731580,10.058463,218.01,217.94,2.293]
[1736200732585,2.2928,217.98,217.94,2.293]
[1736200734186,2.2928,217.98,217.95,2.2929]
[1736200735385,7.107863,218.01,217.93,9.927863]
[1736200735689,2.2926,218.0,217.97,2.2928]
[1736200736291,2.2926,218.0,217.95,7.107863]
[1736200736292,2.2924,218.01,217.98,2.2927]
[1736200738092,2.2925,218.0,217.97,2.2928]
[1736200742296,2.2926,217.99,217.96,2.2929]
[1736200743096,7.107863,218.01,217.95,7.107863]
[1736200743288,2.2928,217.98,217.95,9.400863]
[1736200749101,7.107863,217.99,217.85,4.588]
[1736200749297,2.2931,217.95,217.92,2.2933]
[1736200749502,2.2931,217.95,217.92,5.0533]
[1736200749704,2.2935,217.91,217.88,2.2937]
[1736200749905,2.2935,217.91,217.88,5.0537]
[1736200750101,7.107863,217.93,217.88,2.76]
[1736200750504,2.2935,217.91,217.88,2.76]
[1736200751813,2.2935,217.91,217.88,5.0537]
[1736200754016,7.107863,217.95,217.88,2.76]
[1736200754315,2.2936,217.9,217.88,2.76]
[1736200756917,11.66780529,218.02,217.89,7.107863]
[1736200757118,11.66780529,218.02,217.91,7.107863]
[1736200757318,7.107863,217.97,217.91,7.107863]
[1736200758221,2.2932,217.94,217.91,9.401263]
[1736200760022,2.2932,217.94,217.91,2.2934]
[1736200760221,2.2932,217.93,217.91,2.2934]
[1736200760922,2.2932,217.93,217.9,2.2935]
[1736200761720,2.2932,217.93,217.9,2.2936]
[1736200764126,7.107863,217.97,217.89,7.107863]
[1736200764328,2.2936,217.91,217.88,5.0539]
[1736200764523,2.2936,217.91,217.88,12.161763]
[1736200765227,7.107863,217.95,217.88,2.76]
[1736200765620,2.2938,217.89,217.87,2.76]
[1736200768827,2.2938,217.89,217.87,9.867863]
[1736200769429,2.2938,217.89,217.87,12.161763]
[1736200770225,2.2932,217.94,217.89,2.2937]
[1736200770426,9.867863,217.97,217.9,7.107863]
[1736200770829,2.2935,217.92,217.9,7.107863]
[1736200772230,2.2935,217.91,217.9,7.107863]
[1736200773832,2.2934,217.92,217.9,7.107863]
[1736200775036,2.2932,217.94,217.9,7.107863]
[1736200776433,2.2932,217.94,217.91,2.2935]
[1736200777831,2.2932,217.94,217.92,7.107863]
[1736200780033,2.2933,217.93,217.92,7.107863]
[1736200780834,2.2933,217.93,217.91,2.2935]
[1736200784435,7.107863,217.98,217.9,9.401463]
[1736200784640,2.2934,217.92,217.9,9.401463]
[1736200792944,2.2934,217.92,217.9,2.2936]
[1736200793140,2.2934,217.92,217.91,2.7]
[1736200806956,2.2932,217.94,217.91,9.807863]
[1736200807155,2.2932,217.94,217.91,12.101363]
[1736200807355,1.5198,217.99,217.93,7.107863]
[1736200807850,2.2928,217.98,217.95,7.107863]
[1736200808055,1.5198,217.99,217.95,7.107863]
[1736200810758,1.4704,218.02,217.97,7.107863]
[1736200810953,7.107863,218.04,217.97,7.107863]
[1736200811259,15.88934613,218.05,217.97,7.107863]
[1736200811462,2.2926,218.0,217.96,4.9329]
[1736200811758,2.2926,218.0,217.98,7.107863]
[1736200824172,7.107863,218.04,217.98,7.107863]
[1736200824173,2.2927,217.99,217.98,7.107863]
[1736200824874,7.107863,218.04,217.96,2.64]
[1736200825075,7.107863,218.0,217.94,2.64]
[1736200825479,2.2931,217.95,217.94,9.747863]
[1736200826177,2.293,217.96,217.94,9.747863]
[1736200826875,2.293,217.96,217.94,2.64]
[1736200827177,2.293,217.96,217.94,9.747863]
[1736200830974,7.107863,218.01,217.94,9.747863]
[1736200831167,2.2929,217.97,217.94,12.041063]
[1736200831776,2.2929,217.97,217.94,4.9332]
[1736200831973,2.2929,217.97,217.95,7.107863]
[1736200832578,2.2929,217.97,217.95,2.64]
[1736200832774,7.107863,218.0,217.93,2.2933]
[1736200833273,2.2933,217.94,217.91,2.2936]
[1736200833468,7.107863,217.96,217.9,2.62]
[1736200833668,7.107863,217.94,217.88,1.79115314]
[1736200833876,2.2936,217.91,217.88,4.41115314]
[1736200834376,2.2938,217.89,217.88,1.79115314]
[1736200836578,2.2937,217.9,217.88,1.79115314]
[1736200836877,11.37364149,217.99,217.88,8.89901614]
[1736200837075,7.107863,217.97,217.9,7.107863]
[1736200837277,2.2935,217.92,217.9,7.107863]
[1736200838479,7.107863,217.97,217.9,7.107863]
[1736200838678,2.2932,217.95,217.91,2.2935]
[1736200839075,2.2933,217.94,217.91,2.2935]
[1736200840681,7.107863,217.97,217.9,7.107863]
[1736200840878,2.2932,217.95,217.91,2.2935]
[1736200841080,7.107863,217.97,217.91,2.2935]
[1736200841773,2.2933,217.94,217.91,2.2935]
[1736200843482,2.2933,217.94,217.92,7.107863]
[1736200847378,7.107863,217.99,217.92,7.107863]
[1736200847592,2.2929,217.97,217.93,2.2933]
[1736200847786,7.107863,217.99,217.93,2.2933]
[1736200848989,3.0677,218.0,217.94,9.401063]
[1736200849185,3.0677,218.0,217.94,7.107863]
[1736200850087,3.0677,218.0,217.95,2.2931]
[1736200851191,2.2929,217.98,217.95,2.2931]
[1736200852191,2.2929,217.97,217.95,2.2931]
[1736200852392,2.2929,217.97,217.94,9.401063]
[1736200855093,3.0677,218.0,217.94,9.401063]
[1736200855094,2.293,217.96,217.94,9.401063]
[1736200856095,3.0677,218.0,217.94,9.401063]
[1736200857395,2.293,217.97,217.94,9.401063]
[1736200857593,1.5345,218.01,217.96,7.107863]
[1736200857793,1.5345,218.01,217.98,7.107863]
[1736200858196,2.2927,218.0,217.96,9.400763]
[1736200858598,1.5345,218.01,217.96,9.400763]
[1736200859001,2.2928,217.99,217.96,9.400763]
[1736200859300,1.5345,218.01,217.92,2.62]
[1736200859496,1.5345,218.01,217.95,7.107863]
[1736200861500,2.2929,217.97,217.95,7.107863]
[1736200866603,2.2929,217.97,217.94,2.2931]
[1736200867103,2.2929,217.97,217.95,7.107863]
[1736200872606,2.293,217.96,217.95,7.107863]
[1736200873207,2.2929,217.98,217.95,9.400963]
[1736200875507,2.2929,217.97,217.95,9.400963]
[1736200877906,10.24561557,218.06,217.95,7.107863]
[1736200878109,2.2927,217.99,217.97,7.107863]
[1736200878512,7.107863,218.04,217.97,7.107863]
[1736200879403,2.2928,217.98,217.97,7.107863]
[1736200888515,10.24561557,218.06,217.97,7.107863]
[1736200888716,17.35347857,218.06,218.0,7.107863]
[1736200888918,8.602563,218.06,218.0,7.107863]
[1736200890420,2.2925,218.01,218.0,7.107863]
[1736200891122,2.2923,218.03,218.0,9.400463]
[1736200891425,2.2923,218.03,218.02,7.107863]
[1736200901330,8.76567222,218.11,218.02,7.107863]
[1736200901331,2.2921,218.05,218.02,7.107863]
[1736200901636,10.04083278,218.1,218.04,7.107863]
[1736200902533,2.2921,218.05,218.04,7.107863]
[1736200908243,2.2919,218.07,218.04,9.400063]
[1736200908439,2.2919,218.07,218.06,7.107863]
[1736200910748,2.2919,218.07,218.06,9.727863]
[1736200916454,2.2919,218.07,218.06,2.62]
[1736200916747,7.107863,218.07,218.04,2.62]
[1736200918453,2.2921,218.05,218.04,2.62]
[1736200918851,7.107863,218.09,217.93,1.3989]
[1736200919156,2.2923,218.03,218.02,7.107863]
[1736200919357,2.2923,218.03,218.02,9.727863]
[1736200920959,7.107863,218.09,218.02,12.020263]
[1736200921152,2.93296978,218.1,218.05,7.107863]
[1736200922059,2.93296978,218.1,218.09,7.107863]
[1736200922357,2.93296978,218.1,218.07,7.107863]
[1736200922859,156.65430833,218.27,218.09,7.107863]
[1736200923050,2.2915,218.11,218.1,2.62]
[1736200923453,7.107863,218.17,218.1,2.62]
[1736200923750,2.2913,218.13,218.11,7.107863]
[1736200923952,5.75138856,218.21,218.11,7.107863]
[1736200924156,2.2912,218.14,218.11,7.107863]
[1736200925759,2.2912,218.13,218.11,7.107863]
[1736200925956,5.75138856,218.21,218.11,7.107863]
[1736200926262,7.107863,218.19,218.13,7.107863]
[1736200927464,2.2912,218.14,218.13,7.107863]
[1736200927759,2.2912,218.14,218.1,4.9115]
[1736200927760,7.107863,218.17,218.11,7.107863]
[1736200927956,7.107863,218.13,217.93,1.3989]
[1736200928155,7.107863,218.07,217.93,1.3989]
[1736200928353,7.107863,218.05,217.98,7.107863]
[1736200929163,2.2923,218.03,217.98,7.107863]
[1736200929358,7.107863,218.05,217.93,1.3989]
[1736200929557,7.107863,218.05,217.97,7.107863]
[1736200929757,7.107863,218.03,217.98,2.6]
[1736200930854,7.107863,218.03,217.94,2.2931]
[1736200931059,7.107863,218.03,217.95,2.62]
[1736200931259,7.107863,218.03,217.95,9.727863]
[1736200931761,7.107863,218.03,217.93,3.6922]
[1736200931960,7.107863,218.03,217.95,9.727863]
[1736200932464,2.2929,217.98,217.95,9.727863]
[1736200933964,2.2932,217.95,217.93,2.62]
[1736200934165,2.2932,217.95,217.94,7.107863]
[1736200934867,2.293,217.97,217.94,7.107863]
[1736200935066,2.293,217.97,217.96,7.107863]
[1736200939366,7.107863,218.03,217.96,7.107863]
[1736200939668,2.62,218.08,217.98,7.107863]
[1736200939969,7.107863,218.05,217.98,7.107863]
[1736200941467,2.2927,218.0,217.98,7.107863]
[1736200941669,7.107863,218.05,217.98,7.107863]
[1736200942166,2.2927,217.99,217.98,7.107863]
[1736200946276,7.107863,218.03,217.96,7.107863]
[1736200946473,2.2928,217.98,217.96,7.107863]
[1736200953074,2.2928,217.98,217.95,2.2931]
[1736200953275,2.2928,217.98,217.97,7.107863]
[1736200955674,7.107863,218.09,217.97,7.107863]
[1736200955978,7.107863,218.09,218.02,7.107863]
[1736200957480,2.2923,218.03,218.02,7.107863]
[1736200957678,1.5009,218.11,218.02,7.107863]
[1736200957879,1.5009,218.11,218.06,7.107863]
[1736200959281,2.2919,218.07,218.06,7.107863]
[1736200959483,8.608763,218.11,218.04,7.107863]
[1736200959782,2.2921,218.05,218.04,7.107863]
[1736200964280,8.608763,218.11,217.99,2.62]
[1736200964484,2.2925,218.02,218.01,7.107863]
[1736200969692,2.2924,218.03,218.01,7.107863]
[1736200976895,2.2924,218.03,218.0,9.400363]
[1736200980690,2.2924,218.03,218.02,7.107863]
[1736200981396,2.2924,218.03,218.0,2.2925]
[1736200983101,2.2923,218.04,218.01,2.2924]
[1736200984299,1.5009,218.11,218.0,2.6]
[1736200984300,2.2923,218.03,218.0,2.6]
[1736200984500,2.2923,218.03,218.0,4.8926]
[1736200991306,2.2923,218.03,218.01,2.2925]
[1736200994104,16.87461096,218.11,218.01,2.2925]
[1736200994406,2.2921,218.05,218.02,2.2923]
[1736200999002,2.2924,218.02,218.0,2.6]
[1736200999207,8.13276865,218.11,218.0,2.6]
[1736200999505,16.88161319,218.11,218.0,2.6]
[1736200999702,2.2925,218.01,218.0,2.6]
[1736201000313,2.6,218.08,217.86,1.90707813]
[1736201000610,2.6,218.08,217.87,2.6]
[1736201001011,2.293,217.97,217.92,2.2933]
[1736201001213,2.293,217.97,217.92,4.8933]
[1736201001612,2.293,217.97,217.93,2.2933]
[1736201002309,2.2928,217.99,217.94,2.2931]
[1736201002514,17.98071319,218.08,217.92,2.6]
[1736201002814,6.63186865,218.07,217.92,2.6]
[1736201003310,2.6,218.08,217.92,2.6]
[1736201004510,2.2925,218.01,217.97,2.2929]
[1736201005612,2.2926,218.0,217.97,2.2929]
[1736201023225,2.2926,218.0,217.95,2.293]
[1736201023525,2.2927,217.99,217.95,2.293]
[1736201024526,2.2928,217.98,217.95,2.293]
[1736201024825,2.6,218.08,217.93,2.6]